[Event "GER-ch Youth-ODJM 2022"]
[Site "Willingen"]
[Date "2022.06.07"]
[Round "4.9"]
[White "Tornay, Aritz"]
[Black "Abou Wally, Adrian"]
[Result "1-0"]
[ECO "A20"]
[WhiteElo "1760"]
[BlackElo "1601"]
[Annotator "NA RC COMBH"]
[PlyCount "65"]
[EventDate "2022.06.05"]
[EventType "swiss"]
[EventRounds "9"]
[EventCountry "GER"]
[SourceTitle "playchess.com"]
[Source "ChessBase"]
[SourceQuality "1"]
[TimeControl "40/4500+30:900+30"]

1. c4 {[%emt 0:00:00]} e5 {[%emt 0:00:00]} 2. g3 {[%emt 0:00:00]} Nf6 {[%emt 0:00:00]} 3. Bg2 {[%emt 0:00:00]} Bc5 {[%emt 0:00:00]} 4. Nc3 {[%emt 0:00:00]} d6 {[%emt 0:00:00]} 5. Nf3 {[%emt 0:00:00]} Nc6 {[%emt 0:00:00]} 6. O-O {[%emt 0:00:00]} O-O {[%emt 0:00:00]} 7. d3 {[%emt 0:00:00]} h6 {[%emt 0:00:00]} 8. a3 {[%emt 0:00:00]} a5 {[%emt 0:00:24]} 9. b3 {[%emt 0:00:00]} Nh7 {[%emt 0:14:16]} 10. e3 {[%emt 0:05:42]} Ng5 {[%emt 0:21:05]} 11. Nxg5 {[%emt 0:07:26]} hxg5 {[%emt 0:00:10]} 12. Ne4 {[%emt 0:04:28]} Bb6 {[%emt 0:03:23]} 13. Qh5 {[%emt 0:02:24]} Bf5 {[%emt 0:15:23]} 14. Nxg5 {[%emt 0:10:11]} Bg6 {[%emt 0:06:53]} 15. Qh4 {[%emt 0:06:04]} Ne7 {[%emt 0:03:27]} 16. g4 {[%emt 0:10:40]} c6 {[%emt 0:04:26]} 17. Be4 {[%emt 0:02:18]} Re8 {[%emt 0:07:54]} 18. Bxg6 {[%emt 0:11:47]} Nxg6 {[%emt 0:00:07]} 19. Qh5 {[%emt 0:03:06]} Kf8 {[%emt 0:02:53]} 20. Nh7+ {[%emt 0:03:26]} Kg8 {[%emt 0:01:50]} 21. Ng5 {[%emt 0:01:25]} Kf8 {[%emt 0:00:01]} 22. f4 {[%emt 0:00:47]} exf4 {[%emt 0:03:38]} 23. Rxf4 {[%emt 0:00:02]} Qe7 {[%emt 0:00:03]} 24. Rxf7+ {[%emt 0:01:37]} Qxf7 {[%emt 0:00:01]} 25. Nxf7 {[%emt 0:00:02]} Kxf7 {[%emt 0:00:13]} 26. Qf5+ {[%emt 0:00:09]} Kg8 {[%emt 0:00:20]} 27. Qxg6 {[%emt 0:00:48]} Bxe3+ {[%emt 0:00:17]} 28. Bxe3 {[%emt 0:00:02]} Rxe3 {[%emt 0:00:01]} 29. Rf1 {[%emt 0:00:56]} Rae8 {[%emt 0:00:16]} 30. Qf7+ {[%emt 0:02:17]} Kh8 {[%emt 0:00:19]} 31. g5 {[%emt 0:00:13]} R3e7 {[%emt 0:00:51]} 32. Qh5+ {[%emt 0:00:21]} Kg8 {[%emt 0:00:07]} 33. g6 {[%emt 0:00:04]} 1-0

[Event "GER-ch Youth-ODJM 2022"]
[Site "Willingen"]
[Date "2022.06.07"]
[Round "4.10"]
[White "Struck, Lasse"]
[Black "Gerlach, Felix"]
[Result "1-0"]
[ECO "A60"]
[WhiteElo "1847"]
[BlackElo "2072"]
[Annotator "TA"]
[PlyCount "79"]
[EventDate "2022.06.05"]
[EventType "swiss"]
[EventRounds "9"]
[EventCountry "GER"]
[SourceTitle "playchess.com"]
[Source "ChessBase"]
[SourceQuality "1"]
[TimeControl "40/4500+30:900+30"]

{[%evp 12,79,59,41,59,22,57,61,41,49,62,57,62,42,43,52,52,7,55,59,64,61,112,87,94,48,101,70,75,70,104,13,67,72,89,0,0,0,0,-65,-61,-81,-66,-79,0,0,184,215,200,139,416,416,416,416,510,510,502,502,447,421,421,420,29989,29990,29994,29995,29995,29996,29997,29998]} 1. d4 {[%emt 0:00:00]} Nf6 {[%emt 0:00:00]} 2. c4 {[%emt 0:00:00]} c5 {[%emt 0:00:00]} 3. d5 {[%emt 0:00:00]} e6 {[%emt 0:00:00]} 4. Nc3 {[%emt 0:00:00]} exd5 {[%emt 0:00:00]} 5. cxd5 {[%emt 0:00:00]} Bd6 {[%emt 0:00:00]} 6. g3 {[%emt 0:00:00]} O-O {[%emt 0:00:00]} 7. Nf3 {[%emt 0:00:00]} Re8 {[%emt 0:00:00] A60: Modern Benoni: Early Divergences.} 8. Nd2 {[%emt 0:00:00]} Bf8 {[%emt 0:00:00][%cal Ob7b5]} 9. Bg2 {[%emt 0:00:00]} d6 {[%emt 0:00:09] White is slightly better.} 10. O-O {[%emt 0:00:00]} Na6 {[%emt 0:00:39]} 11. e4 {[%emt 0:00:00]} Rb8 {[%emt 0:02:35]} 12. a4 {[%emt 0:07:32]} Nb4 {[%emt 0:01:13]} 13. Nc4 {[%emt 0:01:18]} b6 {[%emt 0:00:22]} 14. f4 {[%emt 0:13:47] [#]} Ba6 $146 {[%emt 0:05:00]} (14... a6 $11) ({Predecessor:} 14... a6 15. e5 b5 16. axb5 axb5 17. Na3 Bg4 18. Bf3 Bxf3 19. Qxf3 Nd7 20. exd6 Nf6 21. Naxb5 {½-½ (57) Lin,T (2355)-Tauber,M (2275) Bad Woerishofen 1999}) 15. b3 $14 {[%emt 0:02:25]} Rb7 {[%emt 0:01:06]} 16. Bb2 {[%emt 0:12:42]} Rd7 {[%emt 0:04:35]} ({Black should try} 16... Rbe7 $14) 17. Rf2 {[%emt 0:07:16]} g6 {[%emt 0:10:22]} 18. Rd2 {[%emt 0:01:07]} ({Better is} 18. Re2 $16) 18... Bb7 {[%emt 0:00:29]} (18... Bxc4 $14 19. bxc4 Bg7) 19. Qf3 {[%emt 0:04:18]} Bg7 {[%emt 0:05:05]} 20. Rad1 {[%emt 0:00:48]} Rde7 {[%emt 0:06:51]} 21. g4 {[%emt 0:10:28]} ({White should play} 21. e5 $1 $16 dxe5 22. fxe5 Rxe5 23. Nxe5 Rxe5 24. Nb5) 21... Nxe4 {[%emt 0:22:19]} (21... Bc8 $1 $11 22. f5 Ba6) 22. Nxe4 {[%emt 0:00:20]} Bxb2 {[%emt 0:00:27]} 23. Nexd6 {[%emt 0:03:31] White is more active. Pair of Knights!} (23. Ncxd6 $16 Rxe4 24. Nxe4 Bd4+ 25. Rxd4 cxd4 26. Rxd4 Nxd5 27. g5) 23... Bd4+ $11 {[%emt 0:01:34]} ({Don't take} 23... Re1+ 24. Bf1 Rxd1 25. Qxd1 Bd4+ 26. Rxd4 cxd4 27. Nxb7 $16) 24. Rxd4 {[%emt 0:01:22]} cxd4 {[%emt 0:00:13]} 25. Nxb7 {[%emt 0:03:04]} (25. Nxe8 $11 Rxe8 26. Rxd4) 25... Rxb7 $15 {[%emt 0:01:15]} 26. d6 {[%emt 0:01:39]} Rd7 {[%emt 0:01:41] [#] Threatens to win with ...d3.} 27. Rxd4 {[%emt 0:01:37][%cal Bd1d4,Bd4b4,Bb4c4][%mdl 32]} Qf6 {[%emt 0:07:03]} (27... Re1+ $17 28. Bf1 Qf6) 28. Ne5 $36 {[%emt 0:03:26][%cal Bc4e5,Be5g4,Bg4f6][%mdl 2080] White is pushing.} a5 $2 {[%emt 0:01:18]} (28... Rxe5 $11 {and Black has nothing to worry.} 29. fxe5 Qxe5) 29. g5 $18 {[%emt 0:01:34]} Qg7 {[%emt 0:11:01]} 30. Rxb4 {[%emt 0:00:46]} Rxd6 {[%emt 0:00:08][%mdl 8192] Loses the game.} (30... axb4 $16 {is a better defense.} 31. Nxd7 Qd4+ 32. Kh1 Re1+ 33. Bf1 Kg7) 31. Rc4 {[%emt 0:02:06]} f6 {[%emt 0:03:47]} 32. Ng4 {[%emt 0:01:11]} fxg5 {[%emt 0:00:05]} 33. fxg5 {[%emt 0:00:11] [#] Black must now prevent Nh6+.} Rf8 {[%emt 0:01:43]} 34. Nf6+ {[%emt 0:00:39]} Kh8 {[%emt 0:00:03]} 35. Qf4 {[%emt 0:02:18]} Rd1+ {[%emt 0:00:51]} 36. Bf1 {[%emt 0:00:18] Qe5 is the strong threat.} Qb7 {[%emt 0:00:48]} (36... Rd5 $18 37. Qe3 (37. Nxd5 Rxf4 38. Nxf4 Qe5 $18) 37... Rxg5+ 38. Qxg5 Qxf6 39. Qxf6+ Rxf6) 37. Rc7 {[%emt 0:00:24] White mates.} Rxf1+ {[%emt 0:00:38]} 38. Kxf1 {[%emt 0:00:03]} Qh1+ {[%emt 0:00:23]} 39. Kf2 {[%emt 0:00:05][%csl Gf6][%cal Rc7h7]} Rf7 {[%emt 0:00:39]} 40. Rc8+ {[%emt 0:00:14] Weighted Error Value: White=0.25 (precise) /Black=0.53} 1-0

[Event "GER-ch Youth-ODJM 2022"]
[Site "Willingen"]
[Date "2022.06.07"]
[Round "4.11"]
[White "Sayas Payyappat"]
[Black "Stülcken, Philipp"]
[Result "0-1"]
[ECO "A01"]
[WhiteElo "1542"]
[BlackElo "1513"]
[Annotator "NA RC COMBH"]
[PlyCount "32"]
[EventDate "2022.06.05"]
[EventType "swiss"]
[EventRounds "9"]
[EventCountry "GER"]
[SourceTitle "playchess.com"]
[Source "ChessBase"]
[SourceQuality "1"]
[TimeControl "40/4500+30:900+30"]

1. b3 {[%emt 0:00:00]} e5 {[%emt 0:00:00]} 2. Bb2 {[%emt 0:00:00]} Nc6 {[%emt 0:00:00]} 3. e3 {[%emt 0:00:00]} d5 {[%emt 0:00:00]} 4. Bb5 {[%emt 0:00:00]} e4 {[%emt 0:01:44]} 5. Ne2 {[%emt 0:00:00]} a6 {[%emt 0:01:26]} 6. Bxc6+ {[%emt 0:00:00]} bxc6 {[%emt 0:00:06]} 7. O-O {[%emt 0:00:00]} Bg4 {[%emt 0:02:35]} 8. Nbc3 {[%emt 0:00:00]} Qg5 {[%emt 0:03:27]} 9. Kh1 {[%emt 0:00:00]} Bd6 {[%emt 0:01:24]} 10. h3 {[%emt 0:00:00]} Qh6 {[%emt 0:01:20]} 11. Kg1 {[%emt 0:00:00]} Nf6 {[%emt 0:13:19]} 12. Re1 {[%emt 0:01:55]} Bxh3 {[%emt 0:09:57]} 13. Nxd5 {[%emt 0:06:27]} Bxg2 {[%emt 0:05:20]} 14. Kxg2 {[%emt 0:01:05]} Qh2+ {[%emt 0:00:47]} 15. Kf1 {[%emt 0:00:08]} Ng4 {[%emt 0:00:26]} 16. Nxc7+ {[%emt 0:01:08]} Bxc7 {[%emt 0:00:11]} 0-1

[Event "GER-ch Youth-ODJM 2022"]
[Site "Willingen"]
[Date "2022.06.07"]
[Round "4.12"]
[White "Hartwig, Eric-Jordan"]
[Black "Günther, Arthur"]
[Result "0-1"]
[ECO "B01"]
[WhiteElo "1510"]
[BlackElo "1579"]
[Annotator "NA RC COMBH"]
[PlyCount "34"]
[EventDate "2022.06.05"]
[EventType "swiss"]
[EventRounds "9"]
[EventCountry "GER"]
[SourceTitle "playchess.com"]
[Source "ChessBase"]
[SourceQuality "1"]
[TimeControl "40/4500+30:900+30"]

1. e4 {[%emt 0:00:00]} d5 {[%emt 0:00:00]} 2. exd5 {[%emt 0:00:00]} Qxd5 {[%emt 0:00:00]} 3. Nc3 {[%emt 0:00:00]} Qa5 {[%emt 0:00:00]} 4. d4 {[%emt 0:00:00]} Nf6 {[%emt 0:00:00]} 5. Bc4 {[%emt 0:00:00]} Bg4 {[%emt 0:00:00]} 6. f3 {[%emt 0:00:00]} Bf5 {[%emt 0:00:00]} 7. Bd2 {[%emt 0:00:00]} c6 {[%emt 0:00:00]} 8. Nge2 {[%emt 0:00:00]} Nbd7 {[%emt 0:00:00]} 9. Nd5 {[%emt 0:00:00]} Qd8 {[%emt 0:00:00]} 10. Ne3 {[%emt 0:00:00]} Bg6 {[%emt 0:00:00]} 11. Bc3 {[%emt 0:09:15]} Nb6 {[%emt 0:00:22]} 12. Nf4 {[%emt 0:04:27]} Qc7 {[%emt 0:04:18]} 13. Nd3 {[%emt 0:03:52]} Nxc4 {[%emt 0:06:26]} 14. Nxc4 {[%emt 0:00:12]} Nd5 {[%emt 0:00:58]} 15. Qd2 {[%emt 0:05:48]} e6 16. O-O-O {[%emt 0:02:20]} b5 {[%emt 0:09:25]} 17. Na5 {[%emt 0:02:02]} Bxd3 {[%emt 0:01:14]} 0-1

[Event "GER-ch Youth-ODJM 2022"]
[Site "Willingen"]
[Date "2022.06.07"]
[Round "4.13"]
[White "Sabirov, Ramil"]
[Black "Kamp, Adrian"]
[Result "1-0"]
[ECO "A04"]
[WhiteElo "2130"]
[BlackElo "1969"]
[Annotator "TA"]
[PlyCount "93"]
[EventDate "2022.06.05"]
[EventType "swiss"]
[EventRounds "9"]
[EventCountry "GER"]
[SourceTitle "playchess.com"]
[Source "ChessBase"]
[SourceQuality "1"]
[TimeControl "40/4500+30:900+30"]

{[%evp 16,93,-4,-12,15,3,7,7,24,6,18,-2,0,0,0,0,0,-62,-55,-51,-15,-70,-29,-92,-45,-72,11,-4,11,7,31,30,43,-58,15,-59,60,-69,-77,-53,48,39,66,37,41,43,31,49,66,10,58,45,24,35,60,51,226,253,226,239,235,238,246,235,479,464,502,403,479,393,389,381,959,959,941,940,931,926,916,900]} 1. Nf3 {[%emt 0:00:00]} c5 {[%emt 0:00:00]} 2. c4 {[%emt 0:00:00]} Nc6 {[%emt 0:00:00]} 3. g3 {[%emt 0:00:00]} g6 {[%emt 0:00:00]} 4. Bg2 {[%emt 0:00:00]} Bg7 {[%emt 0:00:00]} 5. O-O {[%emt 0:00:00]} d6 {[%emt 0:00:00]} 6. Nc3 {[%emt 0:00:00]} e5 {[%emt 0:00:00]} 7. Ne1 {[%emt 0:00:00][%cal Bf3e1,Be1c2,Bc2e3,Be3d5][%mdl 32]} Nge7 {[%emt 0:00:00]} 8. Nc2 {[%emt 0:00:00]} O-O {[%emt 0:00:00]} 9. d3 {[%emt 0:00:00]} f5 {[%emt 0:00:00][%cal Bf7f5,Bf5f4][%mdl 32] A37: Symmetrical English vs ...g6: 4 Bg2 Bg7 5 Nf3.} 10. Ne3 {[%emt 0:00:00]} f4 {[%emt 0:00:00]} 11. Ned5 {[%emt 0:00:00]} g5 {[%emt 0:06:02] The position is equal.} 12. e3 {[%emt 0:00:00]} Bf5 {[%emt 0:04:21] [#]} 13. Re1 $146 {[%emt 0:24:48]} ({Predecessor:} 13. Rb1 Ng6 14. a3 Qd7 15. b4 Bh3 16. Qh5 Bg4 17. Qxg5 f3 18. Bh1 Bh3 19. Qh5 cxb4 20. axb4 {0-1 (39) Romanos,T (2167)-Fier,A (2574) Thessaloniki 2018}) 13... Qd7 {[%emt 0:07:11]} 14. Ne4 {[%emt 0:06:17]} h6 {[%emt 0:09:02]} 15. Nxe7+ {[%emt 0:04:08]} Nxe7 {[%emt 0:01:57]} 16. Rb1 {[%emt 0:10:25]} (16. exf4 gxf4 17. Bd2) ({White should try} 16. gxf4 $11 gxf4 17. Bf3) 16... Bg4 $15 {[%emt 0:07:24]} 17. f3 {[%emt 0:16:06]} Be6 {[%emt 0:05:20]} (17... Bh5) (17... Bh5 $5 {[%cal Rb7b6]}) 18. b4 {[%emt 0:01:48]} (18. exf4 gxf4 19. gxf4) (18. exf4 $11 gxf4 19. gxf4) 18... b6 {[%emt 0:00:55]} 19. Bd2 {[%emt 0:09:56]} (19. gxf4 exf4 20. exf4) (19. exf4 $11 gxf4 20. Qe2) 19... Kh8 {[%emt 0:04:57]} (19... fxe3 20. Bxe3 cxb4 21. Rxb4 d5) ({Black should play} 19... fxe3 $17 20. Bxe3 cxb4 21. Rxb4 d5 22. cxd5 Nxd5) 20. Qe2 {[%emt 0:04:32]} Ng6 {[%emt 0:07:03]} (20... fxe3 $17 21. Qxe3 d5 22. cxd5 Nxd5) 21. Kh1 {[%emt 0:02:24]} Rae8 {[%emt 0:02:42]} 22. Bc3 {[%emt 0:00:48]} Qd8 {[%emt 0:07:20]} 23. a4 {[%emt 0:00:54]} h5 {[%emt 0:01:01]} 24. Qb2 {[%emt 0:01:41]} (24. bxc5 $14 dxc5 25. a5) 24... Rf7 {[%emt 0:03:24]} (24... fxg3 25. hxg3 h4) (24... fxg3 $1 $15 25. hxg3 h4) 25. d4 {[%emt 0:01:54]} (25. bxc5 $11 bxc5 26. Qb5) 25... g4 {[%emt 0:05:48]} (25... Bxc4 26. dxc5 dxc5 27. bxc5 bxc5 28. Nxc5 $14) (25... cxd4 $15 26. exd4 Bxc4) 26. fxg4 {[%emt 0:00:32]} (26. dxc5 $14 fxg3 27. fxg4 (27. Nxd6 $2 Qh4 $19)) 26... f3 {[%emt 0:01:15]} 27. Bf1 {[%emt 0:00:03]} Bxg4 {[%emt 0:00:36]} (27... f2 $1 $15 28. Nxf2 Ref8) 28. dxc5 $14 {[%emt 0:01:20]} bxc5 {[%emt 0:03:40]} 29. bxc5 {[%emt 0:00:18]} dxc5 {[%emt 0:01:40]} 30. Red1 {[%emt 0:00:31]} (30. Qf2) 30... Qa8 {[%emt 0:00:42]} 31. Nf2 {[%emt 0:00:19]} Bf5 {[%emt 0:01:04]} 32. Rbc1 {[%emt 0:00:55]} (32. Bd3) (32. Bd3 $14) 32... Rb8 {[%emt 0:00:58]} (32... Bh6 33. Re1 Kh7) (32... Bh6 $11 {feels stronger.}) 33. Qa3 {[%emt 0:00:11]} Qc6 {[%emt 0:02:45]} 34. Rd5 {[%emt 0:00:04]} Rc7 {[%emt 0:01:37]} (34... Kh7) 35. Rcd1 {[%emt 0:00:06] Threatens to win with e4.} (35. e4 Bg4 36. h3) 35... Rb1 $2 {[%emt 0:00:38] Loses the game.} (35... Bc2) ({Better is} 35... Bc2 $14) 36. Rxb1 $18 {[%emt 0:00:34]} Bxb1 {[%emt 0:00:07]} 37. e4 {[%emt 0:00:57] Inhibits Bf5.} Bc2 {[%emt 0:02:13] [#]} 38. Qc1 $1 {[%emt 0:01:21]} Bxa4 {[%emt 0:01:10]} 39. Qg5 {[%emt 0:00:04] Strongly threatening Rd8+.} Qf6 {[%emt 0:01:20]} (39... Rf7 40. Nd3 (40. Qxh5+ Kg8) 40... f2 41. Nxe5 Nxe5 42. Bxe5 Bd1 43. Bxg7+ Kh7) (39... Rf7 40. Nd3 (40. Qxh5+ Kg8 $18) 40... Kg8 41. Bxe5 (41. Nxe5 Nxe5 42. Bxe5 Qh6 $16) 41... f2 42. Bxg7 (42. Nxc5 Nxe5 43. Nxa4 Qxa4 $11) (42. Qxh5 Bc2 $16) 42... Kxg7 43. Nxc5 (43. Nf4 Bc2 $17) 43... Bc2) 40. Rd8+ {[%emt 0:01:11]} Kh7 {[%emt 0:00:43]} 41. Qxh5+ {[%emt 0:00:00]} Bh6 {[%emt 0:00:00] [#]} 42. Ng4 $1 {[%emt 0:09:46][%csl Gg4,LRe5,LRf6,LRh6][%cal Rh5h6]} Qg5 {[%emt 0:00:00]} 43. Qh3 {[%emt 0:01:08] Hoping for Bd2. Really sharp!} ({Weaker is} 43. Qxh6+ Qxh6 44. Nxh6 Kxh6 $16) 43... Bd7 $2 {[%emt 0:00:00] [#]} (43... Kg7 44. Rd6 Re7 45. Nxh6 Qxh6) 44. Rxd7+ $1 {[%emt 0:00:53][%mdl 512] White is clearly winning.} Rxd7 {[%emt 0:00:00]} 45. Nxh6 {[%emt 0:00:06][%mdl 64] Discovered Attack} Qxh6 {[%emt 0:00:00]} 46. Qxd7+ {[%emt 0:00:04]} Kh8 {[%emt 0:00:00]} 47. Qh3 {[%emt 0:01:00] Weighted Error Value: White=0.28 (precise) /Black=0.49} 1-0

[Event "GER-ch Youth-ODJM 2022"]
[Site "Willingen"]
[Date "2022.06.07"]
[Round "4.15"]
[White "Schmitt, Daniel"]
[Black "Paeslack, Luis"]
[Result "1-0"]
[ECO "B52"]
[WhiteElo "2141"]
[BlackElo "1889"]
[Annotator "TA"]
[PlyCount "67"]
[EventDate "2022.06.05"]
[EventType "swiss"]
[EventRounds "9"]
[EventCountry "GER"]
[SourceTitle "playchess.com"]
[Source "ChessBase"]
[SourceQuality "1"]
[TimeControl "40/4500+30:900+30"]

{[%evp 10,67,16,25,63,74,83,43,61,31,66,22,64,65,56,55,59,73,113,102,110,97,84,90,111,98,103,90,124,116,163,158,158,158,177,165,172,165,157,158,164,94,138,139,142,133,135,144,244,240,269,260,441,362,1195,1198,1562,1453,1307,1275]} 1. e4 {[%emt 0:00:00]} c5 {[%emt 0:00:00]} 2. Nf3 {[%emt 0:00:00]} d6 {[%emt 0:00:00]} 3. Bb5+ {[%emt 0:00:00]} Bd7 {[%emt 0:00:00]} 4. Bxd7+ {[%emt 0:00:00]} Qxd7 {[%emt 0:00:00]} 5. O-O {[%emt 0:00:00]} Nc6 {[%emt 0:00:00]} 6. c3 {[%emt 0:00:00]} e5 {[%emt 0:02:44] B52: Sicilian: Moscow Variation with 3...Bd7.} 7. d4 {[%emt 0:00:00]} Rd8 {[%emt 0:21:54]} 8. Na3 {[%emt 0:00:00][%cal Bb1a3,Ba3c4,Bc4e3,Be3d5][%mdl 32]} Nf6 {[%emt 0:10:17] White is slightly better.} 9. Bg5 {[%emt 0:00:00]} (9. d5 $5 {[%cal Rd5c6]} Ne7 10. Qc2 $14) 9... Be7 {[%emt 0:02:35]} 10. Re1 {[%emt 0:02:02]} h6 {[%emt 0:05:45] [#]} 11. Bxf6 $146 {[%emt 0:04:18]} ({Predecessor:} 11. Bh4 Qg4 12. h3 Qd7 13. Nc4 exd4 14. cxd4 cxd4 15. Nxd4 Nxd4 16. Qxd4 O-O 17. Ne3 Nh5 {1-0 (27) Riff,J (2460)-Delmont,J (2034) La Fere 2007}) 11... Bxf6 {[%emt 0:00:18]} 12. dxc5 {[%emt 0:05:56]} dxc5 {[%emt 0:00:05]} 13. Nc4 {[%emt 0:02:10]} g5 {[%emt 0:12:46]} 14. Ne3 {[%emt 0:02:00] White is more active.} Qe6 {[%emt 0:03:10]} 15. Nd5 {[%emt 0:04:30] Nc7+ is the strong threat.} O-O {[%emt 0:03:48]} 16. Qe2 {[%emt 0:05:23]} Bg7 {[%emt 0:03:24]} 17. Ne3 {[%emt 0:01:28] Pair of Knights!} Ne7 {[%emt 0:02:32]} 18. Nd2 {[%emt 0:05:55]} a6 {[%emt 0:02:39]} 19. a4 {[%emt 0:00:58][%cal Ba2a4,Ba4a5][%mdl 32]} Ng6 {[%emt 0:02:13]} (19... b5 $16) 20. g3 $18 {[%emt 0:00:51]} Rd7 {[%emt 0:06:00]} 21. a5 {[%emt 0:02:38]} Ne7 {[%emt 0:02:06]} 22. Ndc4 {[%emt 0:01:56]} f5 {[%emt 0:00:14]} 23. exf5 {[%emt 0:02:12]} Nxf5 {[%emt 0:00:04]} 24. Nxf5 {[%emt 0:01:23]} Qxf5 {[%emt 0:00:07]} 25. Nd2 {[%emt 0:04:12]} ({Better is} 25. Red1 $18) 25... e4 {[%emt 0:02:38]} 26. Nxe4 {[%emt 0:05:13]} Re7 {[%emt 0:00:03]} 27. Qc4+ {[%emt 0:01:11]} Kh8 {[%emt 0:00:17][%cal Og7d4] [#]} 28. Re2 $1 {[%emt 0:00:50]} Rfe8 {[%emt 0:01:20]} (28... Bd4 $16 {keeps fighting.}) 29. Rae1 Qg4 {[%emt 0:01:23]} 30. Re3 {[%emt 0:02:00]} h5 $2 {[%emt 0:01:06]} (30... Bf8 {was called for.} 31. h3 Qe6 32. Qxc5 Qd7) 31. Kg2 {[%emt 0:03:40]} Bd4 $2 {[%emt 0:00:30]} (31... Rf8 32. f3 Qf5) 32. cxd4 {[%emt 0:01:05] [#] Threatening mate with Nf6. White is clearly winning.} Rxe4 {[%emt 0:00:04]} 33. Rxe4 {[%emt 0:01:39]} ({Not} 33. Qxc5 Rxe3 34. Rxe3 Rxe3 35. Qf8+ (35. fxe3 Qe2+ 36. Kg1 Qe1+ 37. Kg2 Qe2+ 38. Kg1 Qe1+ 39. Kg2 Qe2+ $11) 35... Kh7 36. Qf7+ (36. fxe3 Qe4+ 37. Qf3 Qc2+ 38. Kg1 Kg6 $16) 36... Kh8 37. Qf8+ (37. fxe3 Qe4+ 38. Qf3 Qc2+ 39. Kf1 g4 $16) 37... Kh7 38. Qf7+ (38. fxe3 Qe4+ 39. Qf3 Qc2+ 40. Kg1 Kg6 $16) 38... Kh8 39. Qf8+ $18 (39. fxe3 Qe4+ 40. Qf3 Qc2+ 41. Kf1 g4 $16)) 33... Rxe4 {[%emt 0:00:05]} 34. f3 {[%emt 0:00:35] Weighted Error Value: White=0.12 (very precise) /Black=0.34} 1-0